bitfinex/quotes_ETHUSD_20251111
["timestamp","ask_amount","ask_price","bid_price","bid_amount"]
[1762868174202,1e-08,3560.9,3560.8,3.30035767]
[1762868174367,0.0112,3561.9,3561.0,3.21370394]
[1762868174572,0.0112,3561.9,3561.4,3.88368853]
[1762868174573,1e-08,3561.5,3561.4,3.88368853]
[1762868174801,1e-08,3561.5,3561.4,8.3100971]
[1762868175001,1e-08,3561.5,3561.4,11.12436219]
[1762868175204,1e-08,3561.5,3561.4,12.16787668]
[1762868175403,0.5092,3562.9,3562.8,2.80678118]
[1762868175605,0.77160023,3562.9,3562.8,2.80678118]
[1762868175789,0.27160023,3562.9,3562.8,3.29878118]
[1762868176907,0.27160023,3562.9,3562.8,2.80678118]
[1762868177905,0.27160023,3562.9,3562.8,4.41928118]
[1762868177906,0.0092,3562.9,3562.8,4.41928118]
[1762868178105,0.0092,3562.9,3562.8,5.35965338]
[1762868178894,0.0092,3562.9,3562.8,9.87996514]
[1762868179094,0.0092,3562.9,3562.8,9.92386193]
[1762868179902,0.0092,3562.9,3562.8,14.42386193]
[1762868180205,0.09711738,3563.9,3563.8,2.8059936]
[1762868180407,0.09711738,3563.9,3563.8,4.5292014]
[1762868180797,0.09711738,3563.9,3563.8,4.9797014]
[1762868182280,0.09711738,3563.9,3563.8,4.5292014]
[1762868182480,0.09711738,3563.9,3563.8,4.9797014]
[1762868183875,0.09711738,3563.9,3563.8,0.5612078]
[1762868183996,0.09711738,3563.9,3563.8,3.4749936]
[1762868184196,0.57261738,3563.9,3563.7,2.80604424]
[1762868184398,0.5,3563.7,3563.4,0.669]
[1762868184723,0.5,3563.7,3563.4,2.80624728]
[1762868185021,0.09631738,3563.9,3563.8,2.8059936]
[1762868185186,0.09631738,3563.9,3563.8,4.40345129]
[1762868185716,0.09631738,3563.9,3563.8,5.07245129]
[1762868186700,0.09631738,3563.9,3563.8,5.96135529]
[1762868187105,0.09631738,3563.9,3563.8,5.07245129]
[1762868187305,0.09631738,3563.9,3563.8,5.55585129]
[1762868187510,0.09831738,3563.9,3563.8,5.55585129]
[1762868188745,0.09831738,3563.9,3563.8,4.88685129]
[1762868188912,0.09831738,3563.9,3563.8,5.55585129]
[1762868189321,0.09831738,3563.9,3563.8,5.07245129]
[1762868189851,0.09831738,3563.9,3563.8,9.57245129]
[1762868190032,0.09831738,3563.9,3563.8,7.3059936]
[1762868190235,0.09831738,3563.9,3563.8,7.7715936]
[1762868191110,0.09831738,3563.9,3563.8,8.4405936]
[1762868192265,0.09831738,3563.9,3563.8,7.7715936]
[1762868192612,0.09831738,3563.9,3563.8,8.9239936]
[1762868192846,0.09831738,3563.9,3563.8,10.09700126]
[1762868193159,0.09831738,3563.9,3563.8,5.59700126]
[1762868193655,0.09831738,3563.9,3563.8,4.44460126]
[1762868193807,0.09831738,3563.9,3563.8,5.11360126]
[1762868194305,0.09831738,3563.9,3563.8,3.9405936]
[1762868194949,0.09831738,3563.9,3563.8,6.9405936]
[1762868195131,0.09831738,3563.9,3563.8,6.2715936]
[1762868195319,0.09831738,3563.9,3563.8,6.4749936]
[1762868195514,0.09831738,3563.9,3563.8,6.9405936]
[1762868197537,0.09831738,3563.9,3563.8,6.4749936]
[1762868197718,0.09831738,3563.9,3563.8,5.8059936]
[1762868198135,0.09831738,3563.9,3563.8,6.2897936]
[1762868198335,0.09831738,3563.9,3563.8,7.74228126]
[1762868198539,0.09831738,3563.9,3563.8,8.14778526]
[1762868199933,0.09831738,3563.9,3563.8,8.81578526]
[1762868200942,0.09831738,3563.9,3563.8,7.74228126]
[1762868201143,0.09831738,3563.9,3563.8,8.41028126]
[1762868202142,0.09831738,3563.9,3563.8,8.81578526]
[1762868204643,0.09831738,3563.9,3563.8,7.26618126]
[1762868204845,0.09831738,3563.9,3563.8,8.41028126]
[1762868205161,1e-08,3563.9,3563.8,7.07549726]
[1762868205371,0.002,3564.3,3564.2,4.47089469]
[1762868205673,0.002,3564.3,3564.2,11.1767133]
[1762868205862,0.002,3564.3,3564.2,11.6528133]
[1762868206960,0.002,3564.3,3564.2,13.1528133]
[1762868207527,0.002,3564.3,3564.2,12.4848133]
[1762868207732,0.002,3564.3,3564.2,5.92370739]
[1762868208037,0.002,3564.3,3564.2,6.59170739]
[1762868208235,0.0012,3564.3,3564.2,6.59170739]
[1762868208563,0.0012,3564.3,3564.2,7.47331139]
[1762868209865,0.0012,3564.3,3564.2,13.1528133]
[1762868210050,0.0012,3564.3,3564.2,8.73302339]
[1762868210568,0.0012,3564.3,3564.2,8.25692339]
[1762868210761,0.0012,3564.3,3564.2,8.73302339]
[1762868211062,0.4717,3564.3,3564.2,6.69961939]
[1762868211255,0.4717,3564.3,3564.2,4.30567869]
[1762868211461,0.9585,3564.3,3564.2,4.97367869]
[1762868211626,0.9585,3564.3,3564.2,4.30567869]
[1762868213265,0.0012,3564.3,3564.2,4.78947869]
[1762868213448,0.0012,3564.3,3564.2,5.89103947]
[1762868213645,0.0012,3564.3,3564.2,6.32715919]
[1762868214276,0.0012,3564.3,3564.2,5.84335919]
[1762868214468,0.0012,3564.3,3564.2,4.97367869]
[1762868214469,0.9585,3564.3,3564.2,4.97367869]
[1762868214863,0.9585,3564.3,3564.2,4.30567869]
[1762868217184,1.4585,3564.3,3564.2,4.30567869]
[1762868217697,1.60435,3564.3,3564.2,1.5]
[1762868218567,5.66966197,3564.3,3564.2,1.5]
[1762868218782,0.5,3563.9,3563.8,0.001]
[1762868218988,4.27771486,3563.9,3563.8,0.001]
[1762868219159,1.9416,3563.9,3563.8,0.001]
[1762868219380,2.41634571,3563.9,3563.8,0.001]
[1762868220369,1.74934571,3563.9,3563.8,0.001]
[1762868220570,1.2746,3563.9,3563.8,0.001]
[1762868220786,0.0012,3564.3,3564.2,2.80567869]
[1762868221001,0.471,3564.3,3564.2,2.80567869]
[1762868221161,0.0012,3564.3,3564.2,2.80567869]
[1762868221734,0.0012,3564.3,3564.2,2.83373547]
[1762868221936,0.0012,3564.3,3564.2,3.27987869]
[1762868222443,0.0012,3564.3,3564.2,4.55544334]
[1762868222799,0.0012,3564.3,3564.2,5.44894734]
[1762868222998,0.0012,3564.3,3564.2,5.47700412]
[1762868223227,0.0012,3564.3,3564.2,5.44894734]
[1762868223460,0.0012,3564.3,3563.8,0.001]
[1762868223461,0.9012,3564.3,3563.8,0.001]
[1762868223601,0.9012,3564.3,3564.2,2.80567869]
[1762868223602,0.971,3564.3,3564.2,2.80567869]
[1762868223800,0.0012,3564.3,3564.2,2.80567869]
[1762868224098,0.0012,3564.3,3564.2,4.32902345]
[1762868224561,0.0012,3564.3,3564.2,3.84102345]
[1762868224900,0.464,3564.3,3563.9,2.80591486]
[1762868225100,0.964,3564.3,3564.1,2.80568942]
[1762868225307,0.464,3564.3,3564.1,2.80575741]
[1762868225510,0.0012,3564.3,3564.2,2.80567869]
[1762868225750,0.0012,3564.3,3564.0,0.667]
[1762868225947,0.0012,3564.3,3564.1,0.001]
[1762868226273,0.0012,3564.3,3564.1,2.80670889]
[1762868226274,0.5012,3564.3,3564.1,2.80670889]
[1762868226839,0.0012,3564.3,3564.2,3.27987869]
[1762868227144,0.0012,3564.3,3564.2,3.95524874]
[1762868227660,0.0012,3564.3,3564.2,4.84875274]
[1762868227808,0.0012,3564.3,3564.2,4.80797398]
[1762868228008,0.0012,3564.3,3564.2,5.11024874]
[1762868228343,0.0012,3564.3,3564.2,4.62224874]
[1762868228546,0.0012,3564.3,3564.2,5.51575274]
[1762868228846,0.0012,3564.3,3564.2,3.95524874]
[1762868229046,0.0012,3564.3,3564.2,4.62224874]
[1762868229412,0.0012,3564.3,3564.2,5.51575274]
[1762868229825,0.0012,3564.3,3564.2,3.95524874]
[1762868230051,0.0012,3564.3,3564.2,3.94687869]
[1762868230540,0.0012,3564.3,3564.2,3.27987869]
[1762868230713,0.0012,3564.3,3564.2,3.94687869]
[1762868230915,0.0012,3564.3,3564.2,3.27987869]
[1762868231136,0.0012,3564.3,3564.2,3.94687869]
[1762868232265,0.0004,3564.3,3564.2,5.56455274]
[1762868233261,0.0004,3564.3,3564.2,5.94218131]
[1762868233687,0.0004,3564.3,3564.2,5.56455274]
[1762868235084,0.0004,3564.3,3564.2,2.80567869]
[1762868235377,0.4632,3564.3,3564.2,7.97267869]
[1762868235686,0.4632,3564.3,3564.2,7.30567869]
[1762868235687,0.933,3564.3,3564.2,7.30567869]
[1762868235867,1.433,3564.3,3564.2,7.30567869]
[1762868236159,1.433,3564.3,3564.2,4.5]
[1762868236761,1.433,3564.3,3564.2,2.80567869]
[1762868236964,1.433,3564.3,3564.1,0.001]
[1762868236965,1.0763,3564.3,3564.1,0.001]
[1762868237167,1.1041,3564.2,3564.1,0.001]
[1762868237729,0.6041,3564.2,3564.1,0.001]
[1762868237929,1.36649627,3564.2,3564.1,0.001]
[1762868238166,1.5175159,3564.2,3564.1,0.001]
[1762868238332,4.32319459,3564.2,3564.1,0.001]
[1762868238533,4.99019459,3564.2,3564.1,0.001]
[1762868239465,6.24990659,3564.2,3564.1,0.001]
[1762868240748,3.30591486,3563.9,3563.8,0.001]
[1762868241044,3.30622983,3563.5,3563.4,0.001]
[1762868241274,4.3732261,3563.5,3563.4,0.001]
[1762868241565,4.8430261,3563.5,3563.4,0.001]
[1762868242767,2.80654486,3563.1,3562.9,0.001]
[1762868242945,4.30589562,3563.1,3562.9,0.001]
[1762868243131,4.77569562,3563.1,3562.9,0.001]
[1762868244239,1.96915076,3563.1,3562.9,0.001]
[1762868244772,4.77569562,3563.1,3562.9,0.001]
[1762868245260,4.51329935,3563.1,3562.9,0.001]
[1762868245449,4.77512445,3563.1,3562.9,0.001]
[1762868245836,1.96857959,3563.1,3562.9,0.001]
[1762868246349,1.6879251,3563.1,3562.9,0.001]
[1762868246550,0.9086,3563.1,3562.9,0.001]
[1762868246865,1.4086,3563.1,3562.9,0.001]
[1762868247439,1.4086,3563.1,3562.9,2.80765113]
[1762868248192,0.4563,3563.1,3563.0,2.80762363]
[1762868248394,0.5,3563.1,3563.0,2.80762363]
[1762868249098,0.9828,3563.1,3563.0,2.80762363]
[1762868249394,0.9828,3563.1,3563.0,0.001]
[1762868251280,0.4828,3563.1,3563.0,0.001]
[1762868251796,0.9828,3563.1,3563.0,0.001]
[1762868252670,0.5,3563.2,3563.1,2.80654486]
[1762868252899,0.667,3563.4,3563.2,2.80644878]
[1762868252900,1.167,3563.4,3563.2,2.80644878]
[1762868253101,0.4828,3563.3,3563.2,2.80644878]
[1762868253321,1.167,3563.4,3563.3,2.80638733]
[1762868253612,1.167,3563.4,3563.0,0.001]
[1762868253613,0.6318,3563.1,3563.0,0.001]
[1762868253922,1.0841,3563.1,3563.0,0.001]
[1762868254462,3.89064486,3563.1,3563.0,0.001]
[1762868254713,1.0841,3563.1,3563.0,0.001]
[1762868254862,1.83668232,3563.1,3563.0,0.001]
[1762868255607,4.64322718,3563.1,3563.0,0.001]
[1762868256278,0.5,3563.1,3563.0,0.001]
[1762868256465,0.667,3563.1,3563.0,2.80762363]
[1762868256797,0.667,3563.1,3563.0,0.001]
[1762868257004,1.167,3563.1,3563.0,2.80762363]
[1762868257502,1.167,3563.1,3563.0,3.28342363]
[1762868257503,0.667,3563.1,3563.0,3.28342363]
[1762868258004,1.167,3563.1,3563.0,0.4768]
[1762868258205,0.667,3563.1,3563.0,3.28342363]
[1762868258405,1.167,3563.1,3563.0,3.28342363]
[1762868259172,0.5,3563.1,3563.0,3.28342363]
[1762868259411,0.667,3563.2,3563.1,2.80654486]
[1762868260695,0.667,3563.2,3563.0,2.80762202]
[1762868261886,0.002,3563.1,3563.0,2.80762202]
[1762868262509,0.002,3563.1,3563.0,3.28342202]
[1762868264004,0.002,3563.1,3563.0,0.4768]
[1762868264206,1.19909437,3563.1,3563.0,0.001]
[1762868264500,0.74679437,3563.1,3563.0,0.001]
[1762868264725,0.26399437,3563.1,3563.0,3.28342363]
[1762868264925,0.26399437,3563.1,3563.0,0.4768]
[1762868265234,0.26399437,3563.1,3563.0,3.28342363]
[1762868265942,0.26399437,3563.1,3563.0,0.4768]
[1762868266736,0.26399437,3563.1,3563.0,3.28342363]
[1762868267640,0.26399437,3563.1,3563.0,0.4768]
[1762868267836,0.26399437,3563.1,3563.0,3.28342363]
[1762868268142,0.74679437,3563.1,3563.0,0.001]
[1762868269021,0.26399437,3563.1,3563.0,2.80762363]
[1762868269224,1.19909437,3563.1,3563.0,0.001]
[1762868269609,1.66634336,3563.1,3563.0,0.001]
[1762868269811,8.19864415,3563.1,3563.0,0.001]
[1762868270043,13.68411208,3563.1,3563.0,0.001]
[1762868270540,9.95835615,3563.1,3563.0,0.001]
[1762868270904,6.23260022,3563.1,3563.0,0.001]
[1762868271932,3.42605536,3563.1,3563.0,0.001]
[1762868272251,6.23260022,3563.1,3563.0,0.001]
[1762868274333,11.25514129,3563.1,3563.0,0.001]
[1762868274634,11.66064529,3563.1,3563.0,0.001]
[1762868276546,11.16064529,3563.1,3563.0,0.001]
[1762868276909,10.75514129,3563.1,3563.0,0.001]
[1762868277440,6.23260022,3563.1,3563.0,0.001]
[1762868277605,3.42605536,3563.1,3563.0,0.001]
[1762868277841,2.00650637,3563.1,3563.0,0.001]
[1762868278040,1.24679437,3563.1,3563.0,0.001]
[1762868278240,1.91279437,3563.1,3563.0,0.001]
[1762868280457,1.91199437,3563.1,3563.0,0.001]
[1762868280656,1.42919437,3563.1,3563.0,3.26662363]
[1762868280805,1.42919437,3563.1,3563.0,0.46]
[1762868280806,0.92919437,3563.1,3563.0,0.46]
[1762868281005,0.92919437,3563.1,3563.0,3.26662363]
[1762868281261,1.42919437,3563.1,3563.0,3.26662363]
[1762868281413,0.92919437,3563.1,3563.0,3.26662363]
[1762868281618,1.42919437,3563.1,3563.0,0.46]
[1762868281820,1.42974977,3563.1,3563.0,0.46]
[1762868283052,2.41954977,3563.1,3563.0,0.001]
[1762868283344,6.72776161,3563.1,3563.0,0.001]
[1762868285049,7.22776161,3563.1,3563.0,0.001]
[1762868285364,7.63326561,3563.1,3563.0,0.001]
[1762868286063,3.80685996,3562.7,3562.6,0.001]
[1762868286262,6.48322173,3562.7,3562.6,0.001]
[1762868286467,8.66092753,3562.7,3562.6,0.001]
[1762868286870,15.40643153,3562.7,3562.6,0.001]
[1762868289455,5.35406757,3562.7,3562.6,0.001]
[1762868289658,1.25064977,3562.7,3562.6,0.001]
[1762868289854,6.48072173,3562.7,3562.6,0.001]
[1762868290525,3.17636177,3562.7,3562.6,0.001]
[1762868290729,6.48072173,3562.7,3562.6,0.001]
[1762868295446,6.98072173,3562.7,3562.6,0.001]
[1762868295676,9.46951374,3562.7,3562.6,0.001]
[1762868297195,8.56400974,3562.7,3562.6,0.001]
[1762868298307,7.89800974,3562.7,3562.6,0.001]
[1762868298611,8.56400974,3562.7,3562.6,0.001]
[1762868299020,9.06400974,3562.7,3562.6,0.001]
[1762868299186,9.46951374,3562.7,3562.6,0.001]
[1762868300302,15.80951374,3562.7,3562.6,0.001]
[1762868301429,2.80717513,3562.3,3562.2,0.001]
[1762868301588,6.4785369,3562.3,3562.2,0.001]
[1762868301774,6.9760369,3562.3,3562.2,0.001]
[1762868302290,13.7215409,3562.3,3562.2,0.001]
[1762868302489,18.24408197,3562.3,3562.2,0.001]
[1762868302703,20.99091967,3562.3,3562.2,0.001]
[1762868302895,20.89847697,3562.3,3562.2,0.001]
[1762868304316,20.89767697,3562.3,3562.2,0.001]
[1762868304613,21.01017698,3562.3,3562.2,0.001]
[1762868306292,20.89767697,3562.3,3562.2,0.001]
[1762868306912,20.23267697,3562.3,3562.2,0.001]
[1762868307117,20.89767697,3562.3,3562.2,0.001]
[1762868308204,3.21299438,3561.9,3561.8,0.001]
[1762868308506,14.12144714,3561.9,3561.8,0.001]
[1762868308687,14.59874714,3561.9,3561.8,0.001]
[1762868309444,17.55774714,3561.9,3561.8,0.001]
[1762868311217,13.93374714,3561.9,3561.8,0.001]
[1762868311421,14.19324314,3561.9,3561.8,0.001]
[1762868311617,14.09874714,3561.9,3561.8,0.001]
[1762868311833,14.59874714,3561.9,3561.8,0.001]
[1762868313922,17.55774714,3561.9,3561.8,0.001]
[1762868315533,5.62325823,3561.2,3561.1,1e-08]
[1762868315713,10.98090637,3561.2,3561.1,1e-08]
[1762868315913,11.45820637,3561.2,3561.1,1e-08]
[1762868318735,17.79820637,3561.2,3561.1,0.00100001]
[1762868320043,17.32090637,3561.2,3561.1,0.00100001]
[1762868320340,18.66879248,3561.2,3561.1,0.00100001]
[1762868320545,18.92828848,3561.2,3561.1,0.00100001]
[1762868320841,18.83379248,3561.2,3561.1,0.00100001]
[1762868321043,9.910592,3561.2,3561.1,0.45670001]
[1762868321349,10.575592,3561.2,3561.1,0.45670001]
[1762868321513,11.835304,3561.2,3561.1,0.45670001]
[1762868322542,11.835304,3561.2,3561.1,0.00100001]
[1762868323356,12.800004,3561.2,3561.1,0.00100001]
[1762868323556,14.40636988,3561.2,3561.1,0.00100001]
[1762868323749,13.94166988,3561.2,3561.1,0.00100001]
[1762868326061,14.40636988,3561.2,3561.1,0.00100001]
[1762868326261,19.69767225,3561.2,3561.1,0.00100001]
[1762868328352,19.69687225,3561.2,3561.1,0.00100001]
[1762868332544,22.65587225,3561.2,3561.1,0.00100001]
[1762868332750,3.21386167,3560.8,3560.7,0.001]
[1762868332949,13.63429292,3560.8,3560.7,0.001]
[1762868333271,14.08999292,3560.8,3560.7,0.001]
[1762868334581,17.04899292,3560.8,3560.7,0.001]
[1762868335893,13.22878892,3560.8,3560.7,0.001]
[1762868336089,11.80407692,3560.8,3560.7,0.4747]
[1762868336475,12.20958092,3560.8,3560.7,0.4747]
[1762868336669,13.46929292,3560.8,3560.7,0.4747]
[1762868337290,13.92269292,3560.8,3560.7,0.001]
[1762868338792,13.46929292,3560.8,3560.7,0.4795]
[1762868339093,13.46929292,3560.8,3560.7,0.9425]
[1762868339094,11.83561944,3560.8,3560.7,0.9425]
[1762868340690,11.83561944,3560.8,3560.7,0.001]
[1762868340890,12.33561944,3560.8,3560.7,0.001]
[1762868341195,12.33561944,3560.8,3560.7,0.4795]
[1762868341196,11.83561944,3560.8,3560.7,0.4795]
[1762868342085,12.33561944,3560.8,3560.7,0.4795]
[1762868342480,11.83561944,3560.8,3560.7,0.4795]
[1762868342686,11.83561944,3560.8,3560.7,0.9425]
[1762868342888,5.49561944,3560.8,3560.7,0.9425]
[1762868343092,0.76254977,3560.8,3560.7,0.9425]
[1762868343395,5.49461944,3560.8,3560.7,0.4795]
[1762868343596,5.99461944,3560.8,3560.7,0.4795]
[1762868344689,5.99461944,3560.8,3560.7,0.001]
[1762868344891,7.77162093,3560.8,3560.7,0.001]
[1762868345078,8.26242093,3560.8,3560.7,0.001]
[1762868348671,5.47365254,3560.7,3560.6,0.001]
[1762868348865,0.4874,3560.2,3560.1,1e-08]
[1762868349103,10.9125911,3560.2,3560.1,1e-08]
[1762868349299,12.81606793,3560.2,3560.1,1e-08]
[1762868349727,12.32526793,3560.2,3560.1,1e-08]
[1762868351104,6.90776956,3560.2,3560.1,1e-08]
[1762868351418,14.64447356,3560.2,3560.1,1e-08]
[1762868352292,15.13447356,3560.2,3560.1,1e-08]
[1762868354127,15.13447356,3560.2,3560.1,0.00100001]
[1762868354501,13.48847356,3560.2,3560.1,0.47950001]
[1762868354725,12.33429273,3560.2,3560.1,0.47950001]
[1762868354927,11.17029273,3560.2,3560.1,1.11650001]
[1762868355219,11.83429273,3560.2,3560.1,1.11650001]
[1762868356118,11.57174296,3560.2,3560.1,1.11650001]
[1762868356321,11.83392902,3560.2,3560.1,1.11650001]
[1762868357149,0.76138606,3560.2,3560.1,1.11650001]
[1762868357348,4.23421702,3560.2,3560.1,1.11650001]
[1762868357536,5.49392902,3560.2,3560.1,1.11650001]
[1762868360434,5.49392902,3560.2,3560.1,0.65350001]
[1762868360753,5.49392902,3560.2,3560.1,1.11650001]
[1762868361558,5.49392902,3560.2,3560.1,0.00100001]
[1762868361736,6.81719979,3560.2,3560.1,0.00100001]
[1762868362055,6.81719979,3560.2,3560.1,0.47950001]
[1762868363464,6.81719979,3560.2,3560.1,0.00100001]
[1762868363465,7.30839979,3560.2,3560.1,0.00100001]
[1762868363664,8.29919979,3560.2,3560.1,0.00100001]
[1762868363964,8.70470379,3560.2,3560.1,0.00100001]
[1762868365055,13.23594824,3560.2,3560.1,0.00100001]
[1762868365653,12.74514824,3560.2,3560.1,0.00100001]
[1762868366682,11.84844424,3560.2,3560.1,0.46770001]
[1762868367034,11.96099363,3560.2,3560.1,0.46770001]
[1762868367863,19.17709763,3560.2,3560.1,0.00100001]
[1762868368184,19.66979763,3560.2,3560.1,0.00100001]
[1762868368557,19.17709763,3560.2,3560.1,0.00100001]
[1762868368724,18.70649763,3560.2,3560.1,0.00100001]
[1762868369526,18.30099363,3560.2,3560.1,0.46770001]
[1762868369730,11.28247841,3560.2,3560.1,1.12170001]
[1762868370062,11.83292902,3560.2,3560.1,1.12170001]
[1762868372963,11.16992902,3560.2,3560.1,1.12170001]
[1762868373299,11.83292902,3560.2,3560.1,1.12170001]
[1762868373708,11.83492902,3560.2,3560.1,1.12170001]
[1762868374002,9.02609806,3560.2,3560.1,1.12170001]
[1762868374305,1.42638606,3560.2,3560.1,1.12170001]
[1762868374696,1.42638606,3560.2,3560.1,1.51487662]
[1762868376205,1.42558606,3560.2,3560.1,1.12170001]
[1762868376498,4.23441702,3560.2,3560.1,1.12170001]
[1762868376800,1.42558606,3560.2,3560.1,1.12170001]
[1762868381781,0.92718606,3560.2,3560.1,3.93060987]
[1762868382595,1.42558606,3560.2,3560.1,3.93060987]
[1762868382795,0.92718606,3560.2,3560.1,4.60467043]
[1762868383281,0.92718606,3560.2,3560.1,1.79576057]
[1762868383483,0.92718606,3560.2,3560.1,3.93060987]
[1762868384117,1.42558606,3560.2,3560.1,1.12170001]
[1762868384815,1.42558606,3560.2,3560.1,3.93060987]
[1762868385220,1.42558606,3560.2,3560.1,1.12170001]
[1762868385415,1.42558606,3560.2,3560.1,1.79578015]
[1762868385819,1.42558606,3560.2,3560.1,4.60469001]
[1762868386017,1.1634,3560.2,3560.1,4.60469001]
[1762868386205,1.42584077,3560.2,3560.1,4.60469001]
[1762868387025,0.92744077,3560.2,3560.1,4.60469001]
[1762868387522,0.26444077,3560.2,3560.1,4.60469001]
[1762868387720,0.002,3560.2,3560.1,4.60469001]
[1762868387929,0.26449875,3560.2,3560.1,4.60469001]
[1762868388294,0.002,3560.2,3560.1,4.60469001]
[1762868388490,0.26446371,3560.2,3560.1,4.60469001]
[1762868389223,0.002,3560.2,3560.1,4.60469001]
[1762868391246,0.002,3560.2,3560.1,1.79578015]
[1762868391432,3.57145387,3560.2,3560.1,0.00100001]
[1762868391613,4.04205387,3560.2,3560.1,0.00100001]
[1762868391809,5.30176587,3560.2,3560.1,0.00100001]
[1762868392037,5.79446587,3560.2,3560.1,0.00100001]
[1762868392237,6.22838698,3560.2,3560.1,0.00100001]
[1762868392546,6.72108698,3560.2,3560.1,0.00100001]
[1762868393050,6.22838698,3560.2,3560.1,0.00100001]
[1762868394045,5.75778698,3560.2,3560.1,0.00100001]
[1762868394218,6.22838698,3560.2,3560.1,0.00100001]
[1762868394408,6.72108698,3560.2,3560.1,0.00100001]
[1762868398157,7.38308698,3560.2,3560.1,0.00100001]
[1762868399069,11.11656224,3560.2,3560.1,0.00100001]
[1762868400147,11.11576224,3560.2,3560.1,0.00100001]
[1762868400667,6.41929376,3560.2,3560.1,0.45880001]
[1762868401246,6.41929376,3560.2,3560.1,0.00100001]
[1762868401247,6.91319376,3560.2,3560.1,0.00100001]
[1762868401443,10.64666902,3560.2,3560.1,0.00100001]
[1762868401649,2.68384169,3560.2,3560.1,0.45880001]
[1762868401844,4.99427265,3560.2,3560.1,0.45880001]
[1762868402174,2.68384169,3560.2,3560.1,0.63280001]
[1762868402359,5.49267265,3560.2,3560.1,0.45880001]
[1762868402536,5.49267265,3560.2,3560.1,0.00100001]
[1762868402537,6.46397265,3560.2,3560.1,0.00100001]
[1762868402862,10.69731901,3560.2,3560.1,0.00100001]
[1762868403037,11.17471901,3560.2,3560.1,0.00100001]
[1762868404036,11.67471901,3560.2,3560.1,0.00100001]
[1762868404457,18.1272703,3560.2,3560.1,0.00100001]
[1762868404948,14.39379504,3560.2,3560.1,0.00100001]
[1762868405552,13.89379504,3560.2,3560.1,0.00100001]
[1762868405839,13.30384375,3560.2,3560.1,0.00100001]
[1762868406469,14.28124375,3560.2,3560.1,0.00100001]
[1762868408274,14.68674775,3560.2,3560.1,0.00100001]
[1762868409777,14.28124375,3560.2,3560.1,0.00100001]
[1762868410070,13.30384375,3560.2,3560.1,0.00100001]
[1762868410956,13.78124375,3560.2,3560.1,0.00100001]
[1762868413075,11.83267265,3560.2,3560.1,0.45880001]
[1762868413276,9.91096065,3560.2,3560.1,1.10220001]
[1762868413484,10.57296065,3560.2,3560.1,1.10220001]
[1762868413686,11.83267265,3560.2,3560.1,0.63280001]
[1762868414391,13.30397265,3560.2,3560.1,0.00100001]
[1762868414550,13.79071362,3560.2,3560.1,0.00100001]
[1762868414755,13.29681362,3560.2,3560.1,0.00100001]
[1762868415065,13.79071362,3560.2,3560.1,0.00100001]
[1762868415266,14.26811362,3560.2,3560.1,0.00100001]
[1762868415787,14.76811362,3560.2,3560.1,0.00100001]
[1762868416268,14.88065953,3560.2,3560.1,0.00100001]
[1762868416885,15.28616353,3560.2,3560.1,0.00100001]
[1762868419967,4.21289276,3560.0,3559.9,0.001]
[1762868420181,14.63202979,3560.0,3559.9,0.001]
[1762868420495,15.10942979,3560.0,3559.9,0.001]
[1762868421963,15.10942979,3560.0,3559.7,0.001]
[1762868421964,2.80914658,3559.8,3559.7,0.001]
[1762868422171,17.09607735,3559.8,3559.7,0.001]
[1762868422379,17.57347735,3559.8,3559.7,0.001]
[1762868422575,19.46629601,3559.8,3559.7,0.001]
[1762868423773,0.76092969,3559.8,3559.7,0.9282]
[1762868424215,4.23027627,3559.8,3559.7,0.4588]
[1762868424498,5.48998827,3559.8,3559.7,0.4588]
[1762868424712,5.98388827,3559.8,3559.7,0.001]
[1762868424917,11.94150277,3559.8,3559.7,0.001]
[1762868425615,6.41701769,3559.8,3559.7,0.494]
[1762868425800,5.48998827,3559.8,3559.7,0.494]
[1762868426183,4.82898827,3559.8,3559.7,0.494]
[1762868426382,2.68084169,3559.8,3559.7,0.9481]
[1762868427500,5.48998827,3559.8,3559.7,0.494]
[1762868427802,5.48998827,3559.8,3559.7,0.9481]
[1762868428114,5.48998827,3559.8,3559.7,0.001]
[1762868428454,6.83828681,3559.8,3559.7,0.001]
[1762868429183,13.17828681,3559.8,3559.7,0.001]
[1762868429914,14.57049081,3559.8,3559.7,0.001]
[1762868432250,14.57049081,3559.8,3559.3,0.001]
[1762868432251,4.36026626,3559.4,3559.3,1e-08]
[1762868432522,12.16359061,3559.4,3559.3,1e-08]
[1762868432722,12.65029061,3559.4,3559.3,1e-08]
[1762868433425,12.76288879,3559.4,3559.3,1e-08]
[1762868434247,6.6294073,3559.4,3559.3,1e-08]
[1762868434401,4.94190213,3559.4,3559.3,0.49300001]
[1762868434591,4.34319013,3559.4,3559.3,0.49300001]
[1762868434787,5.60290213,3559.4,3559.3,0.49300001]
[1762868436535,4.94190213,3559.4,3559.3,0.94710001]
[1762868436739,5.49030395,3559.4,3559.3,0.94710001]
[1762868437233,2.68084169,3559.4,3559.3,0.94710001]
[1762868437403,5.49030395,3559.4,3559.3,0.94710001]
[1762868438408,2.68084169,3559.4,3559.3,0.94710001]
[1762868439144,5.49030395,3559.4,3559.3,0.94710001]
[1762868439346,5.49030395,3559.4,3559.3,0.49300001]
[1762868439633,5.49030395,3559.4,3559.3,0.94710001]
[1762868440016,2.68084169,3559.4,3559.3,0.94710001]
[1762868440622,5.49030395,3559.4,3559.3,0.94710001]
[1762868440952,2.68084169,3559.4,3559.3,0.94710001]
[1762868441709,2.68084169,3559.4,3559.3,3.75664121]
[1762868441710,1.42112969,3559.4,3559.3,3.75664121]
[1762868441953,1.42112969,3559.4,3559.3,4.43210511]
[1762868442154,1.42112969,3559.4,3559.3,1.62256391]
[1762868442355,1.42112969,3559.4,3559.3,4.43210511]
[1762868443227,1.42098226,3559.4,3559.3,4.43210511]
[1762868443427,1.42098226,3559.4,3559.3,1.62256391]
[1762868444036,1.42098226,3559.4,3559.3,4.43210511]
[1762868445116,1.42098226,3559.4,3559.3,1.62256391]
[1762868445423,0.002,3560.0,3559.9,2.80906767]
[1762868445626,0.26447698,3560.0,3559.9,3.58297444]
[1762868445862,0.26447698,3560.0,3559.9,4.03707444]
[1762868446159,0.002,3560.0,3559.9,4.03707444]
[1762868446860,0.002,3560.0,3559.9,5.13707444]